[Event "Romanian Superleague 2022"]
[Site "Oradea"]
[Date "2022.09.25"]
[Round "5.22"]
[White "Filip, Andrei"]
[Black "Nevednichy, Vladislav"]
[Result "1/2-1/2"]
[ECO "C06"]
[WhiteElo "2356"]
[BlackElo "2472"]
[Annotator "TA"]
[PlyCount "103"]
[EventDate "2022.09.21"]
[EventType "team-tourn"]
[EventCountry "ROU"]
[SourceTitle "playchess.com"]
[Source "ChessBase"]
[SourceQuality "1"]
[TimeControl "40/5400+30:1800+30"]

{[%evp 13,103,4,25,-8,-10,-5,0,0,3,18,15,-4,-8,-8,-8,-8,-9,-10,-8,-6,-5,-7,-6,-21,-8,-5,0,-4,0,-7,14,21,25,24,24,0,0,0,37,6,20,7,8,4,1,0,15,0,0,0,0,0,0,0,0,0,0,0,0,0,0,0,-7,-83,-87,-137,0,0,0,0,8,8,63,66,81,34,90,1,4,0,0,0,0,0,0,0,8,0,0,0,0,0]} 1. e4 {[%emt 0:00:04][%cal Be2e4,Be4e5][%mdl 32]} e6 {[%emt 0:00:04]} 2. d4 {[%emt 0:00:06]} d5 {[%emt 0:00:02]} 3. Nd2 {[%emt 0:00:08]} Be7 {[%emt 0:00:24]} 4. Ngf3 {[%emt 0:04:36]} Nf6 {[%emt 0:01:01]} 5. Bd3 {[%emt 0:05:45]} c5 {[%emt 0:00:56]} 6. e5 {[%emt 0:00:19]} Nfd7 {[%emt 0:00:05]} 7. c3 {[%emt 0:00:06]} Nc6 {[%emt 0:00:05][%cal Bb8c6,Bc6b4,Bb4d3][%mdl 32]} 8. Bc2 {[%emt 0:23:27] C06: French Tarrasch: 3...Nf6 4 e5 Nfd7 5 Bd3 main lines.} b6 {[%emt 0:26:52]} 9. O-O {[%emt 0:07:59]} Ba6 {[%emt 0:01:43]} 10. Re1 {[%emt 0:00:08]} cxd4 {[%emt 0:00:09]} 11. cxd4 {[%emt 0:00:08]} Nb4 {[%emt 0:00:15]} 12. Bb1 {[%emt 0:01:32]} Nd3 {[%emt 0:07:23]} 13. Re3 {[%emt 0:02:16]} Nxc1 {[%emt 0:00:47]} 14. Qxc1 {[%emt 0:00:08]} Rc8 {[%emt 0:00:11]} 15. Rc3 {[%emt 0:01:12]} O-O {[%emt 0:00:38]} 16. Rxc8 {[%emt 0:13:09]} Qxc8 {[%emt 0:00:20] [#]} 17. Qd1 $146 {[%emt 0:00:17]} ({Predecessor:} 17. Bc2 Be2 18. Qb1 g6 19. Bd3 Bxd3 20. Qxd3 Qc6 21. Nb3 Rc8 22. Ne1 Bb4 23. g3 {½-½ (41) Boswell,J (1903)-Mason,D (2120) Bolton 2018}) 17... Qc6 {[%emt 0:06:29]} 18. Bc2 {[%emt 0:00:10]} Rc8 {[%emt 0:00:04]} 19. Rc1 {[%emt 0:00:20][%cal Oc2h7] [#] aiming for Bxh7+!} Bd3 {[%emt 0:00:18][%cal Rd3c2]} 20. Ne1 {[%emt 0:02:20]} Bg6 {[%emt 0:00:10]} 21. g3 {[%emt 0:05:15]} f6 {[%emt 0:01:51]} 22. Nb3 {[%emt 0:02:23] Strongly threatening exf6.} Bxc2 {[%emt 0:04:12]} 23. Rxc2 {[%emt 0:00:08]} Qb7 {[%emt 0:00:14]} 24. Qg4 {[%emt 0:10:14]} Rc6 {[%emt 0:05:29]} 25. f4 {[%emt 0:01:13]} fxe5 {[%emt 0:09:04]} 26. fxe5 {[%emt 0:02:43]} Nf8 {[%emt 0:00:19]} 27. Rf2 {[%emt 0:03:24]} Qc8 {[%emt 0:01:03]} 28. Qf3 {[%emt 0:01:12] Threatens to win with Qf7+.} Qe8 {[%emt 0:00:22] Against Qf7+} 29. Nd3 {[%emt 0:00:54]} a5 {[%emt 0:01:29]} 30. Nf4 {[%emt 0:01:56]} a4 {[%emt 0:03:19]} 31. Nd2 {[%emt 0:00:22][%cal Bb3d2,Bd2f1,Bf1e3][%mdl 32]} Rc1+ {[%emt 0:03:17]} 32. Nf1 {[%emt 0:01:28]} b5 {[%emt 0:04:14]} 33. Kg2 {[%emt 0:02:54]} Rc4 {[%emt 0:02:06]} 34. Qd1 {[%emt 0:01:47]} Bg5 {[%emt 0:03:17]} 35. Ne3 {[%emt 0:02:04]} Rc7 {[%emt 0:01:17]} 36. Qg4 {[%emt 0:01:37]} Bxf4 {[%emt 0:00:18]} 37. gxf4 {[%emt 0:00:38]} a3 {[%emt 0:03:46]} 38. bxa3 {[%emt 0:01:06]} (38. f5 $11 {remains equal.}) 38... Rc3 $17 {[%emt 0:00:55][%csl LRa3,LRe3]} 39. Rf3 {[%emt 0:00:46]} ({Better is} 39. Re2) 39... Qg6 {[%emt 0:02:41]} (39... Rxa3 $17 40. f5 Rxa2+ 41. Kh1 (41. Rf2 Ra3 $17) 41... Ra1+ 42. Kg2 b4) 40. f5 $11 {[%emt 0:00:00]} Qxg4+ {[%emt 0:00:00]} 41. Nxg4 {[%emt 0:04:01][%mdl 4096] Endgame KRN-KRN} Rc4 {[%emt 0:04:51]} 42. Rd3 {[%emt 0:03:44]} Kf7 {[%emt 0:04:16]} (42... Rc2+ $11 43. Kg3 Rxa2) 43. Ne3 $14 {[%emt 0:00:50]} Ra4 {[%emt 0:00:09]} 44. Kf2 {[%emt 0:11:12]} (44. Kg3 $16) 44... h5 {[%emt 0:17:04] [#]} ({Black should play} 44... g5 $1 $14) 45. fxe6+ {[%emt 0:04:19]} (45. h4 $1 $16) 45... Nxe6 $11 {[%emt 0:03:46] The position is equal.} 46. Nxd5 {[%emt 0:06:41] Nb4 is the strong threat.} Nxd4 {[%emt 0:02:52]} 47. Nb6 {[%emt 0:01:07]} Ra6 {[%emt 0:00:07]} 48. Rxd4 {[%emt 0:04:44]} Rxb6 {[%emt 0:00:05]} 49. Ke3 {[%emt 0:00:24]} Ra6 {[%emt 0:00:17]} 50. Rd3 {[%emt 0:00:51]} Ra4 {[%emt 0:00:37]} 51. Rb3 {[%emt 0:00:39]} Ke6 {[%emt 0:00:07]} 52. Rxb5 {[%emt 0:01:44] Weighted Error Value: White=0.12 (very precise) /Black=0.10 (very precise)} 1/2-1/2

[Event "Romanian Superleague 2022"]
[Site "Oradea"]
[Date "2022.09.25"]
[Round "5.23"]
[White "Stoleriu, George"]
[Black "Ciorgovean, Iustin"]
[Result "1/2-1/2"]
[ECO "B30"]
[WhiteElo "2392"]
[BlackElo "2314"]
[Annotator "TA"]
[PlyCount "84"]
[EventDate "2022.09.21"]
[EventType "team-tourn"]
[EventCountry "ROU"]
[SourceTitle "playchess.com"]
[Source "ChessBase"]
[SourceQuality "1"]
[TimeControl "40/5400+30:1800+30"]

{[%evp 9,84,8,18,8,0,0,0,0,0,-15,-16,-7,-5,-21,-7,-13,-17,-3,12,18,20,20,37,26,81,43,58,64,72,58,75,73,74,71,74,62,62,62,69,43,50,60,72,80,79,80,71,57,55,0,16,0,0,0,0,0,0,0,0,0,0,0,0,0,0,0,0,0,0,0,0,0,0,0,0,0,0]} 1. e4 {[%emt 0:00:06]} c5 {[%emt 0:00:05]} 2. Nf3 {[%emt 0:00:06]} Nc6 {[%emt 0:00:03]} 3. Bb5 {[%emt 0:00:05]} e6 {[%emt 0:00:18]} 4. Bxc6 {[%emt 0:07:16]} bxc6 {[%emt 0:00:11]} 5. d3 {[%emt 0:00:05]} Qc7 {[%emt 0:00:11]} 6. Nbd2 {[%emt 0:04:38] B30: Sicilian: 2...Nc6 3 Bb5, lines without ...g6.} Ne7 {[%emt 0:05:59]} 7. O-O {[%emt 0:10:33]} Ng6 {[%emt 0:03:26] Against e5} 8. b3 {[%emt 0:02:23]} Be7 {[%emt 0:05:21]} 9. Bb2 {[%emt 0:00:43]} e5 {[%emt 0:04:27]} 10. Nc4 {[%emt 0:10:26][%cal Rc4e5,Bd2c4,Bc4e3,Be3f5][%mdl 32]} d6 {[%emt 0:00:15]} 11. Ne3 {[%emt 0:10:19] Inhibits f5.} O-O {[%emt 0:02:32] [#]} 12. Nf5 $146 {[%emt 0:11:25]} ({Predecessor:} 12. Ne1 f5 13. exf5 Bxf5 14. Nxf5 Rxf5 15. g3 Raf8 16. Ng2 Bg5 17. Bc1 Bxc1 18. Rxc1 {0-1 (53) Lickleder,A (2155)-Dvoretzky,M (2475) Bayern 1997}) 12... Bf6 {[%emt 0:06:59]} 13. Nd2 {[%emt 0:03:54]} Qd8 {[%emt 0:23:39]} 14. Nc4 {[%emt 0:07:21] Pair of Knights!} d5 {[%emt 0:00:21]} 15. Nce3 {[%emt 0:01:10]} Be6 {[%emt 0:04:49]} 16. Qf3 {[%emt 0:05:03]} a5 {[%emt 0:10:41]} (16... d4 $11) 17. a4 {[%emt 0:00:41]} d4 {[%emt 0:06:03]} 18. Nc4 {[%emt 0:02:56]} Bxc4 {[%emt 0:10:46]} 19. bxc4 {[%emt 0:00:50]} Nh4 {[%emt 0:00:21]} 20. Nxh4 {[%emt 0:05:21]} Bxh4 {[%emt 0:00:00]} 21. Qg4 {[%emt 0:00:06]} Be7 {[%emt 0:01:34]} 22. f4 {[%emt 0:00:31]} exf4 {[%emt 0:03:26]} 23. Bc1 {[%emt 0:07:49] White is more active.} Bd6 {[%emt 0:01:08]} 24. Bxf4 {[%emt 0:00:25]} Bxf4 {[%emt 0:00:53]} 25. Qxf4 {[%emt 0:00:04]} f6 {[%emt 0:04:47] Against Qe5} 26. Rab1 {[%emt 0:02:37]} Rb8 {[%emt 0:01:17] Against Rb7} 27. Rxb8 {[%emt 0:05:14]} Qxb8 $16 {[%emt 0:00:01][%mdl 4096] Endgame KQR-KQR} 28. Qf5 {[%emt 0:00:05]} (28. Qg4 $5 {[%cal Rg4e6]}) 28... Qd6 {[%emt 0:00:27] Inhibits Qe6+.} 29. Rb1 {[%emt 0:01:22]} (29. g4 $14) 29... Rb8 {[%emt 0:01:11] The position is equal.} 30. Rb7 {[%emt 0:00:56]} Rxb7 {[%emt 0:02:05]} 31. Qc8+ {[%emt 0:00:03]} Kf7 {[%emt 0:00:07] [#] ( -> ...Rb1+)} 32. Qxb7+ $11 {[%emt 0:00:03] KQ-KQ} Kg6 {[%emt 0:00:25]} 33. g3 {[%emt 0:00:03]} Qe6 {[%emt 0:00:35]} 34. Qb1 {[%emt 0:02:08]} Qg4 {[%emt 0:00:13]} 35. Qf1 {[%emt 0:00:09]} h5 {[%emt 0:00:43]} 36. Kg2 {[%emt 0:00:43]} h4 {[%emt 0:01:24]} 37. Qe1 {[%emt 0:00:01]} hxg3 {[%emt 0:01:36]} 38. hxg3 {[%emt 0:00:05]} Qh5 {[%emt 0:00:22]} 39. Qf1 {[%emt 0:01:06]} Qg4 {[%emt 0:00:22]} 40. Qe1 {[%emt 0:00:00]} Qh5 {[%emt 0:00:00]} 41. Qf1 {[%emt 0:14:23]} Qg4 {[%emt 0:07:15]} 42. Qf4 {[%emt 0:10:17]} Qd1 {[%emt 0:02:57] Weighted Error Value: White=0.05 (flawless) /Black=0.05 (flawless)} 1/2-1/2

[Event "Romanian Superleague 2022"]
[Site "Oradea"]
[Date "2022.09.25"]
[Round "5.24"]
[White "Carmaciu, Lucian-Catalin"]
[Black "Danilov, Vladimir"]
[Result "1-0"]
[ECO "A45"]
[WhiteElo "2376"]
[BlackElo "2378"]
[Annotator "TA"]
[PlyCount "71"]
[EventDate "2022.09.21"]
[EventType "team-tourn"]
[EventCountry "ROU"]
[SourceTitle "playchess.com"]
[Source "ChessBase"]
[SourceQuality "1"]
[TimeControl "40/5400+30:1800+30"]

{[%evp 9,71,23,20,16,65,77,85,28,68,56,45,44,54,37,22,30,44,45,52,0,53,39,52,51,50,38,45,48,45,46,64,28,190,189,180,191,402,365,947,940,936,939,899,878,1040,996,1322,1288,1279,1282,1318,1299,1510,1498,2831,2775,5397,5393,11872,1362,6620,5410,5389,5361]} 1. d4 {[%emt 0:00:06]} Nf6 {[%emt 0:00:07]} 2. Bf4 {[%emt 0:00:08]} e6 {[%emt 0:00:07]} 3. e3 {[%emt 0:00:20]} b6 {[%emt 0:00:05]} 4. Qf3 {[%emt 0:00:19]} Nc6 {[%emt 0:00:10]} 5. Nc3 {[%emt 0:00:10]} Bb7 {[%emt 0:00:34]} 6. O-O-O {[%emt 0:00:10] A45: Trompowsky Attack.} (6. Nge2 {keeps more tension.} Nxd4 7. Qxb7 Nxc2+ 8. Kd2) 6... Be7 {[%emt 0:03:59]} (6... Qe7 $11) 7. e4 $14 {[%emt 0:00:33]} d6 {[%emt 0:09:34] [#]} 8. e5 $146 {[%emt 0:04:36]} ({Better is} 8. d5 $16 {Black must now prevent Bb5.} exd5 9. exd5) ({Predecessor:} 8. d5 exd5 9. exd5 Nb8 10. Bb5+ Nbd7 11. Nge2 O-O 12. Nd4 Ne5 13. Bxe5 dxe5 14. Nc6 {1-0 (36) Gascon del Nogal,J (2425)-Zavgorodniy,S (2418) Chess.com INT 2020}) 8... Nd7 {[%emt 0:33:40][%cal Rd6e5]} 9. Bb5 {[%emt 0:04:55]} d5 {[%emt 0:09:53]} 10. h4 {[%emt 0:06:41]} a6 {[%emt 0:06:48]} 11. Be2 {[%emt 0:09:25]} (11. Bxc6 $5 Bxc6 12. Qg3 $14) 11... b5 {[%emt 0:01:12]} 12. Qg4 {[%emt 0:00:32]} g6 {[%emt 0:02:54]} 13. Nf3 {[%emt 0:05:56]} h5 {[%emt 0:05:57]} 14. Qh3 {[%emt 0:00:06]} (14. Qg3 $14) 14... Nb6 {[%emt 0:01:20]} (14... Na5 $11) 15. Ng5 {[%emt 0:00:29]} Qd7 {[%emt 0:01:52]} 16. g4 {[%emt 0:00:35]} b4 {[%emt 0:04:33] Inhibits a3.} 17. Nb1 {[%emt 0:00:13][%cal Bc3b1,Bb1d2,Bd2b3,Bb3c5][%mdl 32]} Nd8 {[%emt 0:04:27]} 18. gxh5 {[%emt 0:00:16]} gxh5 {[%emt 0:00:01]} 19. Nd2 $36 {[%emt 0:01:17][%mdl 2048] And now Nb3 would win. White has the initiative.} a5 {[%emt 0:01:55]} 20. Nb3 {[%emt 0:03:37] Nc5 is the strong threat. White is much more active.} Ba6 $2 {[%emt 0:00:21] A mistake that costs the game.} (20... Qc6 $11 {and Black is okay.}) 21. Bxa6 $18 Rxa6 {[%emt 0:00:02] [#]} 22. Nc5 $1 {[%emt 0:05:22]} Bxc5 {[%emt 0:08:07]} (22... Qb5) 23. dxc5 {[%emt 0:00:05]} Na4 $2 {[%emt 0:00:29]} (23... Qa4) 24. Ne4 {[%emt 0:00:31] White is clearly winning.} dxe4 {[%emt 0:01:42]} 25. Rxd7 {[%emt 0:00:12]} Kxd7 {[%emt 0:00:02]} 26. Qf1 {[%emt 0:01:24]} Rc6 {[%emt 0:02:17]} 27. Qb5 {[%emt 0:00:31][%csl LRa4,LRa5]} Kc8 {[%emt 0:01:18]} 28. Qxa4 {[%emt 0:00:27]} Rxc5 {[%emt 0:00:07]} 29. Rd1 {[%emt 0:00:32]} c6 {[%emt 0:00:39]} 30. a3 {[%emt 0:01:20]} bxa3 {[%emt 0:00:33]} 31. Qxa3 {[%emt 0:00:09]} Nb7 {[%emt 0:00:32]} 32. Be3 {[%emt 0:00:40]} Rb5 {[%emt 0:00:19]} 33. Qe7 {[%emt 0:00:21]} Rd8 {[%emt 0:00:06]} 34. Rxd8+ {[%emt 0:01:02]} Nxd8 {[%emt 0:00:02]} 35. Bg5 {[%emt 0:00:17]} Rd5 {[%emt 0:00:51]} 36. Qe8 {[%emt 0:00:10] Weighted Error Value: White=0.10 (very precise) /Black=0.53} 1-0

[Event "Romanian Superleague 2022"]
[Site "Oradea"]
[Date "2022.09.25"]
[Round "5.25"]
[White "Pranav Vijay"]
[Black "Nguyen, Thai Dai Van"]
[Result "1/2-1/2"]
[ECO "B45"]
[WhiteElo "2265"]
[BlackElo "2627"]
[Annotator "TA"]
[PlyCount "106"]
[EventDate "2022.09.21"]
[EventType "team-tourn"]
[EventCountry "ROU"]
[SourceTitle "playchess.com"]
[Source "ChessBase"]
[SourceQuality "1"]
[TimeControl "40/5400+30:1800+30"]

{[%evp 15,106,8,43,0,0,0,0,0,-11,0,0,0,0,-47,-38,-45,-45,-100,-58,-122,-20,-21,-41,-136,-126,-128,-26,-132,-127,-145,-135,-144,-145,-197,-124,-113,-43,-80,-33,-54,-33,-52,-52,-66,-27,-31,0,-2,0,-33,0,-16,-26,-48,-83,-85,0,-60,0,0,0,0,0,0,0,0,0,0,0,0,0,0,0,0,0,0,0,-5,-5,-5,0,0,0,0,0,0,0,0,0,0,0,0,0]} 1. e4 {[%emt 0:00:03]} c5 {[%emt 0:00:17]} 2. Nf3 {[%emt 0:00:07]} e6 {[%emt 0:00:14]} 3. d4 {[%emt 0:00:10]} cxd4 {[%emt 0:00:07]} 4. Nxd4 {[%emt 0:00:06]} Nc6 {[%emt 0:00:26]} 5. Nc3 {[%emt 0:00:09]} Nf6 {[%emt 0:00:08]} 6. Nxc6 {[%emt 0:00:28]} bxc6 {[%emt 0:00:07]} 7. e5 {[%emt 0:00:06]} Nd5 {[%emt 0:00:07]} 8. Ne4 {[%emt 0:00:07]} Bb7 {[%emt 0:00:22]} 9. c4 {[%emt 0:03:31] B45: Sicilian Four Knights.} ({White should try} 9. Be2 $14) 9... Nb4 $1 $11 {[%emt 0:00:42]} 10. Bd2 {[%emt 0:09:06]} c5 {[%emt 0:07:20][%cal Bc6c5,Bc5b4,Bb4a3][%mdl 32]} 11. Bxb4 {[%emt 0:00:28]} (11. Bg5 $2 Qb8 12. Nc3 (12. Nd6+ $2 Bxd6 13. Qxd6 Nc2+ 14. Kd2 Qxd6+ 15. exd6 Nxa1 $17) 12... Qxe5+ 13. Be3 O-O-O $17) 11... cxb4 {[%emt 0:11:42]} 12. Nd6+ {[%emt 0:00:17]} Bxd6 {[%emt 0:00:12]} 13. Qxd6 {[%emt 0:00:08]} Qb6 {[%emt 0:00:37] [#]} 14. a3 $146 {[%emt 0:10:36]} (14. c5 $11 Qxd6 15. exd6) ({Predecessor:} 14. O-O-O Qxd6 15. Rxd6 Ke7 16. Rd4 f6 17. exf6+ gxf6 18. Rh4 Rac8 19. b3 Rc5 20. Rg1 {½-½ (63) Gokerkan,C (2445)-Vorobiov,E (2499) Ayvalik 2022}) 14... bxa3 $15 {[%emt 0:11:05]} 15. b4 {[%emt 0:00:21]} f6 $1 {[%emt 0:00:35] ...fxe5 is the strong threat.} ({Much less strong is} 15... Qxd6 16. exd6 f5 17. Rxa3 $14) 16. Rd1 {[%emt 0:17:49]} (16. b5 $1 $15) 16... O-O-O {[%emt 0:29:05]} (16... Qxd6 $6 17. exd6 Kf7 18. Ra1 $15) 17. Qd2 {[%emt 0:13:47]} ({Only move:} 17. Be2 $1 $15) 17... a5 {[%emt 0:06:48]} (17... fxe5 $17 {Threatens to win with ...Rhf8.} 18. c5 Qc6) 18. b5 $1 $11 {[%emt 0:08:44]} Qc5 $36 {[%emt 0:00:35][%mdl 2048] Black is more active.} 19. exf6 {[%emt 0:02:46]} ({Better is} 19. Be2 $15) 19... gxf6 $17 {[%emt 0:00:11]} 20. Qxa5 {[%emt 0:06:30] [#]} Rhg8 {[%emt 0:01:10]} (20... d5 $1 $17 21. Rc1 d4) 21. Be2 {[%emt 0:04:47]} (21. h4 $11) 21... Rxg2 {[%emt 0:09:40]} 22. Rf1 {[%emt 0:00:08]} Rxh2 {[%emt 0:02:50] Strongly threatening ...Rg8.} 23. Rd3 {[%emt 0:00:17]} Rh4 {[%emt 0:04:15]} (23... Qxc4 $2 24. Rc3 Qxc3+ 25. Qxc3+ Kb8 26. Qg3+ d6 27. Qxh2 $18) 24. Rxa3 {[%emt 0:00:21]} (24. Rc3 $17) 24... Re4 {[%emt 0:00:45]} ({Black should play} 24... d5 $19 25. b6 Qxa5+ 26. Rxa5 dxc4) 25. Rg1 {[%emt 0:10:07]} h5 {[%emt 0:04:32]} (25... Qxc4 26. Rc3 Rxe2+ 27. Kf1 Re4+ 28. Rxc4+ Rxc4 29. Rg3 $16) (25... Qe5 $17 26. Qd2 Rxc4) 26. Rag3 $1 $15 {[%emt 0:00:37]} Qc7 {[%emt 0:03:07]} ({Resist} 26... Qxc4 27. Rc3 Rxe2+ 28. Kd1 $14) (26... e5 $17) 27. Qxc7+ {[%emt 0:01:56]} Kxc7 {[%emt 0:00:01]} 28. Rg8 {[%emt 0:00:08]} Rxg8 {[%emt 0:01:51]} 29. Rxg8 {[%emt 0:00:02][%mdl 4096] Endgame KRB-KRB} h4 {[%emt 0:00:10]} 30. Kd2 {[%emt 0:01:15]} Rf4 {[%emt 0:02:21]} 31. Ke3 {[%emt 0:00:08]} Re4+ {[%emt 0:00:01]} 32. Kd2 {[%emt 0:00:04]} Rf4 {[%emt 0:01:00]} 33. Ke3 {[%emt 0:00:06]} e5 {[%emt 0:00:27] aiming for ...Re4+.} ({Reject} 33... Re4+ $6 34. Kd3 $17) 34. c5 {[%emt 0:01:31]} Re4+ {[%emt 0:01:33]} 35. Kd2 {[%emt 0:00:08]} Rf4 {[%emt 0:00:24]} (35... Rd4+ $17 36. Ke1 Bd5) 36. Rg7 {[%emt 0:01:35]} (36. Ke3 $1 $11) 36... Rxf2 {[%emt 0:00:33]} (36... Be4 $15 37. c6 Bf5) 37. c6 $11 {[%emt 0:00:48] The position is equal.} Bxc6 {[%emt 0:00:37]} 38. bxc6 {[%emt 0:00:08]} Kxc6 {[%emt 0:00:03] KRB-KR} 39. Rg4 {[%emt 0:00:59]} h3 {[%emt 0:02:04] [#] Hoping for ...h2.} 40. Rh4 {[%emt 0:00:00]} d5 {[%emt 0:00:00]} 41. Rxh3 {[%emt 0:01:28]} f5 {[%emt 0:02:01]} 42. Rh5 {[%emt 0:01:38]} Kd6 {[%emt 0:01:58]} 43. Ke3 {[%emt 0:00:34]} Rf4 {[%emt 0:00:23]} 44. Rh8 {[%emt 0:03:56]} Re4+ {[%emt 0:08:14]} 45. Kd2 {[%emt 0:01:25]} Ra4 {[%emt 0:03:14]} 46. Rf8 {[%emt 0:02:03]} Ra2+ {[%emt 0:02:43]} 47. Ke1 {[%emt 0:00:12]} Ke6 {[%emt 0:00:49]} 48. Bh5 {[%emt 0:01:06]} Ra4 {[%emt 0:06:55]} 49. Kd2 {[%emt 0:01:18]} Rd4+ {[%emt 0:01:23]} 50. Ke1 {[%emt 0:00:48]} Rh4 {[%emt 0:00:21]} 51. Bg6 {[%emt 0:00:34]} Rf4 {[%emt 0:00:09]} 52. Bh7 {[%emt 0:03:21]} e4 {[%emt 0:04:22]} 53. Rd8 {[%emt 0:00:17]} Rg4 {[%emt 0:01:43] Weighted Error Value: White=0.15 (very precise) /Black=0.19 (very precise)} 1/2-1/2

[Event "Romanian Superleague 2022"]
[Site "Oradea"]
[Date "2022.09.25"]
[Round "5.26"]
[White "Nisipeanu, Liviu-Dieter"]
[Black "Grigore, George-Gabriel"]
[Result "1/2-1/2"]
[ECO "D36"]
[WhiteElo "2633"]
[BlackElo "2455"]
[Annotator "TA"]
[PlyCount "65"]
[EventDate "2022.09.21"]
[EventType "team-tourn"]
[EventCountry "ROU"]
[SourceTitle "playchess.com"]
[Source "ChessBase"]
[SourceQuality "1"]
[TimeControl "40/5400+30:1800+30"]

{[%evp 19,65,9,17,0,25,11,11,17,17,15,27,42,59,30,66,16,56,28,33,22,37,34,38,36,37,12,28,27,36,28,57,65,62,44,63,17,27,31,64,64,99,99,121,116,130,26,35,0]} 1. d4 {[%emt 0:00:09]} d5 {[%emt 0:00:26]} 2. c4 {[%emt 0:00:11]} e6 {[%emt 0:00:05]} 3. Nc3 {[%emt 0:00:12]} Nf6 {[%emt 0:00:09]} 4. cxd5 {[%emt 0:00:59]} exd5 {[%emt 0:00:13]} 5. Bg5 {[%emt 0:00:06]} Be7 {[%emt 0:00:32]} 6. e3 {[%emt 0:00:07]} c6 {[%emt 0:00:18]} 7. Bd3 {[%emt 0:00:20]} Nbd7 {[%emt 0:00:17][%cal Bb8d7,Bd7f8,Bf8e6][%mdl 32]} 8. Nge2 {[%emt 0:01:58]} Nf8 {[%emt 0:01:35]} 9. Qc2 {[%emt 0:01:53]} Ne6 {[%emt 0:01:07]} 10. Bh4 {[%emt 0:09:43]} g6 {[%emt 0:01:21]} 11. h3 {[%emt 0:06:54] D36: Queen's Gambit Declined: Exchange Variation: Main line (5 Bg5 c6 6 Qc2).} Nh5 {[%emt 0:05:22]} 12. Bxe7 {[%emt 0:00:38]} Qxe7 {[%emt 0:00:09]} 13. O-O-O {[%emt 0:01:53] The position is equal.} Nc7 {[%emt 0:13:34]} 14. Kb1 {[%emt 0:06:36] [#]} Ng7 $146 {[%emt 0:02:40]} ({Predecessor:} 14... Bd7 15. Nc1 Ng7 16. Rhe1 O-O 17. f3 b6 18. Qf2 Rad8 19. e4 Be6 20. g4 c5 21. dxc5 Qxc5 {½-½ (65) Bruzon Batista,L (2669)-Wang,C (2521) Danzhou 2015}) 15. g4 {[%emt 0:01:04]} O-O {[%emt 0:09:03]} 16. Nf4 {[%emt 0:08:16]} Nge6 {[%emt 0:23:09]} 17. Nce2 {[%emt 0:08:16] White is much more active. The black rooks are badly placed.} (17. Ng2 $14) 17... Nxf4 {[%emt 0:01:13]} 18. Nxf4 {[%emt 0:10:13]} Ne6 {[%emt 0:03:38]} 19. Qd2 {[%emt 0:08:15]} Bd7 {[%emt 0:01:55]} 20. Nxe6 {[%emt 0:03:33]} Bxe6 {[%emt 0:00:54]} 21. f4 {[%emt 0:01:51]} Rae8 {[%emt 0:10:34]} 22. f5 {[%emt 0:04:03]} Bc8 {[%emt 0:01:30]} 23. Rde1 {[%emt 0:00:06]} gxf5 {[%emt 0:05:01]} 24. gxf5 {[%emt 0:06:42]} Qf6 {[%emt 0:00:33]} 25. Qf2 {[%emt 0:03:08]} Kh8 {[%emt 0:00:30]} 26. Qf4 {[%emt 0:00:37]} Rg8 {[%emt 0:00:48]} 27. Rhg1 {[%emt 0:00:16] Prevents Qg5.} Rxg1 {[%emt 0:08:14]} 28. Rxg1 {[%emt 0:00:05]} Bd7 {[%emt 0:00:20]} 29. Ka1 {[%emt 0:01:29]} Rc8 {[%emt 0:02:45]} 30. Bb1 {[%emt 0:01:37]} b6 {[%emt 0:01:46]} 31. h4 {[%emt 0:05:44]} c5 {[%emt 0:02:38]} 32. a3 {[%emt 0:04:50]} (32. dxc5 $16 {Rd1 is the strong threat.} bxc5 33. e4 dxe4 34. Bxe4) 32... c4 $11 {[%emt 0:01:07]} 33. Qe5 {[%emt 0:03:33] Weighted Error Value: White=0.17 (very precise) /Black=0.15 (very precise)} 1/2-1/2